[Event "80th ARM-ch 1st League 2019"]
[Site "Yerevan"]
[Date "2019.08.23"]
[Round "6.2"]
[White "Chaqryan, Erik"]
[Black "Mikaelyan, Arman"]
[Result "0-1"]
[ECO "B30"]
[WhiteElo "2105"]
[BlackElo "2454"]
[Annotator "ChessBase"]
[PlyCount "76"]
[EventDate "2019.08.18"]
[EventType "tourn"]
[EventCountry "ARM"]
[SourceTitle "playchess.com"]
[Source "ChessBase"]
[SourceQuality "1"]
[TimeControl "40/5400+30:1800+30"]

1. e4 {[%emt 0:07:18]} c5 {[%emt 0:01:04]} 2. Nf3 {[%emt 0:00:44]} Nc6 {[%emt 0:01:34]} 3. d3 {[%emt 0:04:38]} g6 {[%emt 0:00:37]} 4. g3 {[%emt 0:00:17]} Bg7 {[%emt 0:00:07]} 5. Bg2 {[%emt 0:00:09]} e6 {[%emt 0:00:46]} 6. O-O {[%emt 0:00:10]} Nge7 {[%emt 0:00:08]} 7. Nbd2 {[%emt 0:02:40]} O-O {[%emt 0:00:36]} 8. Re1 {[%emt 0:01:40]} d5 {[%emt 0:01:05]} 9. e5 {[%emt 0:03:45]} Qc7 {[%emt 0:01:06]} 10. Qe2 {[%emt 0:00:31]} b5 {[%emt 0:03:25]} 11. Nf1 {[%emt 0:00:50]} b4 {[%emt 0:00:59]} 12. Bf4 {[%emt 0:02:07]} a5 {[%emt 0:03:01]} 13. h4 {[%emt 0:02:00]} Ba6 {[%emt 0:00:14]} 14. N1h2 {[%emt 0:12:21]} c4 {[%emt 0:02:59]} 15. Ng4 {[%emt 0:04:14]} Nf5 {[%emt 0:02:01]} 16. Qd2 {[%emt 0:13:05]} b3 {[%emt 0:22:29]} 17. c3 {[%emt 0:09:47]} d4 {[%emt 0:11:46]} 18. Nf6+ {[%emt 0:04:18]} Kh8 {[%emt 0:00:45]} 19. g4 {[%emt 0:01:20]} Rad8 {[%emt 0:05:58]} 20. gxf5 {[%emt 0:04:32]} dxc3 {[%emt 0:00:24]} 21. Qxc3 {[%emt 0:00:47]} Bxf6 {[%emt 0:01:34]} 22. Qc1 {[%emt 0:05:15]} Be7 {[%emt 0:07:55]} 23. f6 {[%emt 0:00:09]} Bb4 {[%emt 0:00:03]} 24. Bh6 {[%emt 0:08:27]} Rg8 {[%emt 0:03:03]} 25. Re4 {[%emt 0:06:11]} c3 {[%emt 0:04:49]} 26. bxc3 {[%emt 0:05:04]} Bxd3 {[%emt 0:00:04]} 27. Bg7+ {[%emt 0:00:20]} Rxg7 {[%emt 0:00:04]} 28. Qh6 {[%emt 0:00:37]} Rdg8 {[%emt 0:01:23]} 29. fxg7+ {[%emt 0:00:20]} Rxg7 {[%emt 0:00:03]} 30. Re3 {[%emt 0:00:46]} b2 {[%emt 0:08:20]} 31. Rae1 {[%emt 0:00:05]} Bxc3 {[%emt 0:01:12]} 32. Rxd3 {[%emt 0:00:04]} Bxe1 {[%emt 0:00:10]} 33. Rd1 {[%emt 0:00:19]} Bc3 {[%emt 0:00:58]} 34. Ng5 {[%emt 0:01:04]} Nxe5 {[%emt 0:06:23]} 35. Nxh7 {[%emt 0:00:57]} Ng4 {[%emt 0:01:45]} 36. Qg5 {[%emt 0:00:05]} Nxf2 {[%emt 0:01:34]} 37. Rf1 {[%emt 0:01:02]} Kxh7 {[%emt 0:00:12]} 38. Kxf2 {[%emt 0:00:06]} Qb6+ {[%emt 0:00:06]} 0-1

[Event "80th ARM-ch 1st League 2019"]
[Site "Yerevan"]
[Date "2019.08.23"]
[Round "6.3"]
[White "Hoghmrtsyan, Artur"]
[Black "Sargsyan, Shant"]
[Result "0-1"]
[ECO "A46"]
[WhiteElo "2317"]
[BlackElo "2540"]
[Annotator "ChessBase"]
[PlyCount "76"]
[EventDate "2019.08.18"]
[EventType "tourn"]
[EventCountry "ARM"]
[SourceTitle "playchess.com"]
[Source "ChessBase"]
[SourceQuality "1"]
[TimeControl "40/5400+30:1800+30"]

1. d4 {[%emt 0:00:00]} Nf6 {[%emt 0:01:02]} 2. Nf3 {[%emt 0:00:00]} d5 {[%emt 0:01:47]} 3. c4 {[%emt 0:01:25]} e6 {[%emt 0:00:47]} 4. g3 {[%emt 0:00:37]} Bb4+ {[%emt 0:00:21]} 5. Bd2 {[%emt 0:00:05]} Be7 {[%emt 0:00:13]} 6. Bg2 {[%emt 0:00:06]} O-O {[%emt 0:00:21]} 7. O-O {[%emt 0:00:05]} Nbd7 {[%emt 0:00:34]} 8. Qc2 {[%emt 0:01:59]} c6 {[%emt 0:00:32]} 9. Bf4 {[%emt 0:00:54]} b6 {[%emt 0:01:11]} 10. Nc3 {[%emt 0:12:45]} Ba6 {[%emt 0:01:58]} 11. cxd5 {[%emt 0:07:41]} cxd5 {[%emt 0:00:57]} 12. Qa4 {[%emt 0:03:54]} Bb7 {[%emt 0:03:52]} 13. Ne5 {[%emt 0:14:45]} Nxe5 {[%emt 0:04:00]} 14. Bxe5 {[%emt 0:00:28]} Nd7 {[%emt 0:00:51]} 15. Bf4 {[%emt 0:00:47]} a6 {[%emt 0:00:34]} 16. Rfc1 {[%emt 0:01:14]} b5 {[%emt 0:02:34]} 17. Qd1 {[%emt 0:00:07]} Rc8 {[%emt 0:00:54]} 18. a4 {[%emt 0:03:49]} b4 {[%emt 0:03:34]} 19. Na2 {[%emt 0:00:10]} Bc6 {[%emt 0:10:18]} 20. b3 {[%emt 0:07:41]} Qb6 {[%emt 0:02:22]} 21. Rc2 {[%emt 0:07:36]} f5 {[%emt 0:07:34]} 22. Qd2 {[%emt 0:05:29]} a5 {[%emt 0:02:02]} 23. Nc1 {[%emt 0:04:35]} Bf6 {[%emt 0:05:08]} 24. Be3 {[%emt 0:00:38]} Bb7 {[%emt 0:02:11]} 25. Rxc8 {[%emt 0:07:14]} Rxc8 {[%emt 0:00:15]} 26. Na2 {[%emt 0:00:22]} Ba6 {[%emt 0:06:50]} 27. Rd1 {[%emt 0:01:45]} h6 {[%emt 0:04:10]} 28. f4 {[%emt 0:01:37]} Bd8 {[%emt 0:08:01]} 29. Rc1 {[%emt 0:02:10]} Ra8 {[%emt 0:04:00]} 30. Rc2 {[%emt 0:05:44]} Nf6 {[%emt 0:00:22]} 31. Nc1 {[%emt 0:01:35]} Ne4 {[%emt 0:05:30]} 32. Bxe4 {[%emt 0:01:24]} fxe4 {[%emt 0:00:14]} 33. g4 {[%emt 0:02:59]} Be7 {[%emt 0:03:11]} 34. Bf2 {[%emt 0:00:27]} Rf8 {[%emt 0:01:36]} 35. e3 {[%emt 0:03:24]} g5 {[%emt 0:00:45]} 36. Bg3 {[%emt 0:00:51]} gxf4 {[%emt 0:02:57]} 37. exf4 {[%emt 0:00:22]} e5 {[%emt 0:00:25]} 38. Ne2 {[%emt 0:01:42]} Bxe2 {[%emt 0:00:42]} 0-1

[Event "80th ARM-ch 1st League 2019"]
[Site "Yerevan"]
[Date "2019.08.23"]
[Round "6.4"]
[White "Harutyunian, Tigran K."]
[Black "Baghdasaryan, Vahe"]
[Result "1/2-1/2"]
[ECO "A06"]
[WhiteElo "2555"]
[BlackElo "2373"]
[Annotator "ChessBase"]
[PlyCount "132"]
[EventDate "2019.08.18"]
[EventType "tourn"]
[EventCountry "ARM"]
[SourceTitle "playchess.com"]
[Source "ChessBase"]
[SourceQuality "1"]
[TimeControl "40/5400+30:1800+30"]

1. Nf3 {[%emt 0:00:45]} d5 {[%emt 0:00:00]} 2. e3 {[%emt 0:00:42]} Nf6 {[%emt 0:00:28]} 3. c4 {[%emt 0:01:09]} c6 {[%emt 0:00:17]} 4. Nc3 {[%emt 0:00:42]} Nbd7 {[%emt 0:02:10]} 5. cxd5 {[%emt 0:06:19]} cxd5 {[%emt 0:02:07]} 6. d4 {[%emt 0:00:05]} e6 {[%emt 0:02:57]} 7. Bd3 {[%emt 0:00:50]} Bd6 {[%emt 0:00:42]} 8. O-O {[%emt 0:01:11]} O-O {[%emt 0:01:15]} 9. b3 {[%emt 0:13:44]} a6 {[%emt 0:16:14]} 10. Bb2 {[%emt 0:02:25]} b5 {[%emt 0:01:20]} 11. e4 {[%emt 0:05:09]} dxe4 {[%emt 0:02:42]} 12. Nxe4 {[%emt 0:00:12]} Nxe4 {[%emt 0:02:00]} 13. Bxe4 {[%emt 0:00:09]} Rb8 {[%emt 0:00:07]} 14. d5 {[%emt 0:05:04]} exd5 {[%emt 0:23:41]} 15. Qxd5 {[%emt 0:10:48]} Nf6 {[%emt 0:02:14]} 16. Qg5 {[%emt 0:01:16]} h6 {[%emt 0:02:22]} 17. Bxf6 {[%emt 0:01:34]} Qxf6 {[%emt 0:02:22]} 18. Qxf6 {[%emt 0:00:15]} gxf6 {[%emt 0:00:02]} 19. Nd4 {[%emt 0:01:44]} Re8 {[%emt 0:02:55]} 20. Bf3 {[%emt 0:02:14]} Rb6 {[%emt 0:08:13]} 21. Rfe1 {[%emt 0:02:56]} Rxe1+ {[%emt 0:01:50]} 22. Rxe1 {[%emt 0:02:07]} Bd7 {[%emt 0:00:37]} 23. Nc2 {[%emt 0:09:48]} Be5 {[%emt 0:09:34]} 24. Rd1 {[%emt 0:00:20]} Rd6 {[%emt 0:00:24]} 25. Rxd6 {[%emt 0:03:46]} Bxd6 {[%emt 0:00:13]} 26. Kf1 {[%emt 0:00:47]} Bf5 {[%emt 0:01:44]} 27. Ne3 {[%emt 0:01:12]} Bd3+ {[%emt 0:03:22]} 28. Ke1 {[%emt 0:03:55]} Bb1 {[%emt 0:04:14]} 29. Kd2 {[%emt 0:04:58]} a5 {[%emt 0:00:43]} 30. a4 {[%emt 0:03:23]} bxa4 {[%emt 0:00:17]} 31. bxa4 {[%emt 0:00:05]} f5 {[%emt 0:02:34]} 32. h3 {[%emt 0:02:23]} f4 {[%emt 0:00:14]} 33. Nc4 {[%emt 0:03:13]} Bb4+ {[%emt 0:00:39]} 34. Ke2 {[%emt 0:00:07]} Ba2 {[%emt 0:00:25]} 35. Nd2 {[%emt 0:02:03]} Kg7 {[%emt 0:00:45]} 36. Bc6 {[%emt 0:02:15]} Kf6 {[%emt 0:01:01]} 37. Kd3 {[%emt 0:00:28]} Bxd2 {[%emt 0:03:40]} 38. Kxd2 {[%emt 0:00:04]} Ke5 {[%emt 0:00:04]} 39. Kc3 {[%emt 0:07:00]} h5 {[%emt 0:01:00]} 40. f3 {[%emt 0:00:00]} h4 {[%emt 0:00:00]} 41. Bb5 {[%emt 0:03:10]} Kd5 {[%emt 0:09:48]} 42. Bd3 {[%emt 0:00:30]} Kc5 {[%emt 0:00:11]} 43. Be2 {[%emt 0:00:18]} Bb1 {[%emt 0:00:30]} 44. Bd1 {[%emt 0:00:48]} f6 {[%emt 0:00:16]} 45. Be2 {[%emt 0:00:13]} Bf5 {[%emt 0:00:06]} 46. Bd1 {[%emt 0:00:42]} Be6 {[%emt 0:02:25]} 47. Be2 {[%emt 0:00:07]} Bd7 {[%emt 0:00:05]} 48. Bd1 {[%emt 0:00:04]} Bc6 {[%emt 0:00:09]} 49. Bc2 {[%emt 0:00:21]} Bd5 {[%emt 0:00:51]} 50. Bd3 {[%emt 0:00:18]} Ba2 {[%emt 0:00:10]} 51. Be2 {[%emt 0:00:19]} Bb1 {[%emt 0:00:36]} 52. Bd1 {[%emt 0:00:25]} Bf5 {[%emt 0:00:24]} 53. Be2 {[%emt 0:00:07]} Bg6 {[%emt 0:00:04]} 54. Bd1 {[%emt 0:00:23]} Be8 {[%emt 0:00:13]} 55. Bc2 {[%emt 0:00:19]} Bc6 {[%emt 0:00:18]} 56. Bd1 {[%emt 0:00:06]} Bd5 {[%emt 0:00:09]} 57. Be2 {[%emt 0:00:06]} Bb7 {[%emt 0:00:15]} 58. Bd3 {[%emt 0:00:19]} Bc8 {[%emt 0:00:19]} 59. Be2 {[%emt 0:00:14]} Bd7 {[%emt 0:00:08]} 60. Bd1 {[%emt 0:00:06]} Be6 {[%emt 0:00:09]} 61. Be2 {[%emt 0:00:05]} Bd5 {[%emt 0:00:02]} 62. Bd3 {[%emt 0:00:24]} Bc6 {[%emt 0:00:40]} 63. Bc2 {[%emt 0:00:13]} Be8 {[%emt 0:00:09]} 64. Bd1 {[%emt 0:00:09]} Bf7 {[%emt 0:00:07]} 65. Be2 {[%emt 0:00:05]} Bg6 {[%emt 0:00:04]} 66. Bd1 {[%emt 0:00:18]} Bf7 {[%emt 0:00:08]} 1/2-1/2

[Event "80th ARM-ch 1st League 2019"]
[Site "Yerevan"]
[Date "2019.08.23"]
[Round "6.5"]
[White "Harutjunyan, Gevorg"]
[Black "Torosyan, Norayr"]
[Result "1/2-1/2"]
[ECO "B31"]
[WhiteElo "2455"]
[BlackElo "2365"]
[Annotator "ChessBase"]
[PlyCount "82"]
[EventDate "2019.08.18"]
[EventType "tourn"]
[EventCountry "ARM"]
[SourceTitle "playchess.com"]
[Source "ChessBase"]
[SourceQuality "1"]
[TimeControl "40/5400+30:1800+30"]

1. e4 {[%emt 0:00:00]} c5 {[%emt 0:00:00]} 2. Nf3 {[%emt 0:00:10]} Nc6 {[%emt 0:00:44]} 3. Bb5 {[%emt 0:00:24]} g6 {[%emt 0:00:13]} 4. Bxc6 {[%emt 0:01:21]} dxc6 {[%emt 0:00:09]} 5. d3 {[%emt 0:00:41]} Bg7 {[%emt 0:00:06]} 6. h3 {[%emt 0:02:00]} Nf6 {[%emt 0:00:20]} 7. Nc3 {[%emt 0:00:35]} Nd7 {[%emt 0:00:16]} 8. Be3 {[%emt 0:02:03]} e5 {[%emt 0:00:09]} 9. Qd2 {[%emt 0:00:18]} h6 {[%emt 0:00:10]} 10. a3 {[%emt 0:03:10]} Qe7 {[%emt 0:03:58]} 11. O-O {[%emt 0:00:43]} Nf8 {[%emt 0:03:13]} 12. b4 {[%emt 0:00:03]} Ne6 {[%emt 0:02:49]} 13. Na4 {[%emt 0:04:39]} b6 {[%emt 0:07:38]} 14. bxc5 {[%emt 0:05:57]} b5 {[%emt 0:00:13]} 15. Nc3 {[%emt 0:06:13]} f5 {[%emt 0:00:24]} 16. exf5 {[%emt 0:05:41]} gxf5 {[%emt 0:00:06]} 17. Qe1 {[%emt 0:00:12]} Bf6 {[%emt 0:14:44]} 18. Bd2 {[%emt 0:05:47]} Rg8 {[%emt 0:08:07]} 19. Kh1 {[%emt 0:02:17]} Nxc5 {[%emt 0:00:09]} 20. Rg1 {[%emt 0:07:33]} Bb7 {[%emt 0:04:43]} 21. Rb1 {[%emt 0:13:55]} O-O-O {[%emt 0:03:36]} 22. Be3 {[%emt 0:03:47]} Ne6 {[%emt 0:12:19]} 23. Bxa7 {[%emt 0:10:42]} c5 {[%emt 0:09:59]} 24. Qe3 {[%emt 0:10:18]} Nd4 {[%emt 0:08:30]} 25. Nxd4 {[%emt 0:06:11]} cxd4 {[%emt 0:01:00]} 26. Qe1 {[%emt 0:00:18]} dxc3 {[%emt 0:02:29]} 27. Rxb5 {[%emt 0:00:20]} Qxa3 {[%emt 0:04:41]} 28. Qe3 {[%emt 0:03:58]} Qd6 {[%emt 0:05:09]} 29. f3 {[%emt 0:04:03]} Bc6 {[%emt 0:02:50]} 30. Bc5 {[%emt 0:00:36]} Qd7 {[%emt 0:02:16]} 31. Ra5 {[%emt 0:00:38]} f4 {[%emt 0:00:34]} 32. Qf2 {[%emt 0:00:32]} Rg3 {[%emt 0:01:03]} 33. Rga1 {[%emt 0:00:04]} Qf5 {[%emt 0:02:43]} 34. Bf8 {[%emt 0:00:58]} Kd7 {[%emt 0:01:07]} 35. Ra7+ {[%emt 0:00:37]} Ke8 {[%emt 0:00:03]} 36. Qc5 {[%emt 0:00:23]} Qxh3+ {[%emt 0:00:58]} 37. gxh3 {[%emt 0:00:10]} Bxf3+ {[%emt 0:00:03]} 38. Kh2 {[%emt 0:00:02]} Rg2+ {[%emt 0:00:11]} 39. Kh1 {[%emt 0:00:03]} Rg3+ {[%emt 0:01:10]} 40. Kh2 {[%emt 0:00:00]} Rg2+ {[%emt 0:00:00]} 41. Kh1 {[%emt 0:00:14]} Rg3+ {[%emt 0:01:54]} 1/2-1/2

[Event "80th ARM-ch 1st League 2019"]
[Site "Yerevan"]
[Date "2019.08.23"]
[Round "6.6"]
[White "Hayrapetyan, Hovik"]
[Black "Gharibyan, Mamikon"]
[Result "0-1"]
[ECO "D38"]
[WhiteElo "2453"]
[BlackElo "2365"]
[Annotator "ChessBase"]
[PlyCount "112"]
[EventDate "2019.08.18"]
[EventType "tourn"]
[EventCountry "ARM"]
[SourceTitle "playchess.com"]
[Source "ChessBase"]
[SourceQuality "1"]
[TimeControl "40/5400+30:1800+30"]

1. Nf3 {[%emt 0:00:05]} d5 {[%emt 0:00:12]} 2. d4 {[%emt 0:00:31]} Nf6 {[%emt 0:10:28]} 3. c4 {[%emt 0:00:32]} e6 {[%emt 0:01:01]} 4. Nc3 {[%emt 0:01:44]} Bb4 {[%emt 0:02:45]} 5. Bd2 {[%emt 0:09:30]} c6 {[%emt 0:10:23]} 6. e3 {[%emt 0:01:05]} O-O {[%emt 0:00:56]} 7. Bd3 {[%emt 0:02:18]} Nbd7 {[%emt 0:03:17]} 8. O-O {[%emt 0:00:18]} Bd6 {[%emt 0:04:20]} 9. e4 {[%emt 0:15:38]} dxc4 {[%emt 0:00:51]} 10. Bxc4 {[%emt 0:02:06]} e5 {[%emt 0:00:12]} 11. Bg5 {[%emt 0:01:38]} Qe7 {[%emt 0:11:37]} 12. Qe2 {[%emt 0:15:48]} exd4 {[%emt 0:04:00]} 13. Nxd4 {[%emt 0:03:04]} Ne5 {[%emt 0:00:39]} 14. Bb3 {[%emt 0:01:31]} h6 {[%emt 0:08:17]} 15. Bh4 {[%emt 0:03:13]} Ng6 {[%emt 0:01:54]} 16. Bg3 {[%emt 0:00:31]} Bc5 {[%emt 0:01:06]} 17. Rad1 {[%emt 0:03:55]} Rd8 {[%emt 0:02:33]} 18. Nf3 {[%emt 0:19:10]} Bg4 {[%emt 0:01:25]} 19. Rxd8+ {[%emt 0:05:39]} Rxd8 {[%emt 0:01:41]} 20. Rd1 {[%emt 0:00:04]} Rxd1+ {[%emt 0:09:41]} 21. Bxd1 {[%emt 0:00:01]} Bd4 {[%emt 0:02:07]} 22. Bc2 {[%emt 0:06:20]} Bxf3 {[%emt 0:06:10]} 23. gxf3 {[%emt 0:02:24]} Nh5 {[%emt 0:00:32]} 24. Qd2 {[%emt 0:01:35]} Qf6 {[%emt 0:02:27]} 25. Bd1 {[%emt 0:00:01]} Nhf4 {[%emt 0:02:03]} 26. Ne2 {[%emt 0:01:19]} Nxe2+ {[%emt 0:05:24]} 27. Bxe2 {[%emt 0:00:02]} Bxb2 {[%emt 0:00:43]} 28. Qd7 {[%emt 0:00:19]} Qe7 {[%emt 0:01:38]} 29. Qc8+ {[%emt 0:00:25]} Kh7 {[%emt 0:00:31]} 30. Bc4 {[%emt 0:01:40]} Ne5 {[%emt 0:03:49]} 31. Bxe5 {[%emt 0:00:50]} Bxe5 {[%emt 0:00:21]} 32. Qf5+ {[%emt 0:00:50]} g6 {[%emt 0:00:17]} 33. Qxf7+ {[%emt 0:00:07]} Qxf7 {[%emt 0:00:04]} 34. Bxf7 {[%emt 0:00:04]} Kg7 {[%emt 0:00:40]} 35. Be8 {[%emt 0:01:38]} Kf6 {[%emt 0:01:31]} 36. h3 {[%emt 0:00:57]} g5 {[%emt 0:01:23]} 37. Kf1 {[%emt 0:00:04]} Bh2 {[%emt 0:00:44]} 38. Ke2 {[%emt 0:00:12]} Ke5 {[%emt 0:00:11]} 39. Kd3 {[%emt 0:00:13]} Kd6 {[%emt 0:00:41]} 40. Kc4 {[%emt 0:00:00]} Bg1 {[%emt 0:00:00]} 41. f4 {[%emt 0:03:55]} gxf4 {[%emt 0:03:13]} 42. f3 {[%emt 0:03:10]} Bb6 {[%emt 0:03:10]} 43. h4 {[%emt 0:05:06]} Bd8 {[%emt 0:06:28]} 44. h5 {[%emt 0:00:05]} Bf6 {[%emt 0:00:19]} 45. a4 {[%emt 0:02:03]} b6 {[%emt 0:02:44]} 46. Bf7 {[%emt 0:11:39]} a6 {[%emt 0:04:32]} 47. Be8 {[%emt 0:02:21]} b5+ {[%emt 0:01:35]} 48. Kb4 {[%emt 0:00:14]} Bd4 {[%emt 0:00:33]} 49. Kb3 {[%emt 0:07:57]} Kc5 {[%emt 0:02:44]} 50. Bd7 {[%emt 0:00:01]} Kb6 {[%emt 0:00:44]} 51. Bc8 {[%emt 0:01:04]} c5 {[%emt 0:00:32]} 52. axb5 {[%emt 0:00:23]} axb5 {[%emt 0:00:06]} 53. Be6 {[%emt 0:00:37]} Be5 {[%emt 0:00:19]} 54. Bd7 {[%emt 0:00:32]} c4+ {[%emt 0:00:13]} 55. Kb4 {[%emt 0:00:04]} Bd6+ {[%emt 0:00:05]} 56. Kc3 {[%emt 0:00:48]} Kc5 {[%emt 0:00:05] Kd4+} 0-1

[Event "80th ARM-ch 1st League 2019"]
[Site "Yerevan"]
[Date "2019.08.24"]
[Round "7.1"]
[White "Torosyan, Norayr"]
[Black "Chaqryan, Erik"]
[Result "1-0"]
[ECO "A45"]
[WhiteElo "2365"]
[BlackElo "2105"]
[Annotator "NA"]
[PlyCount "51"]
[EventDate "2019.08.18"]
[EventType "tourn"]
[EventCountry "ARM"]
[SourceTitle "playchess.com"]
[Source "ChessBase"]
[SourceQuality "1"]
[TimeControl "40/5400+30:1800+30"]

1. d4 {[%emt 0:00:00]} Nf6 {[%emt 0:00:21]} 2. Bf4 {[%emt 0:00:26]} g6 {[%emt 0:00:17]} 3. Nc3 {[%emt 0:00:09]} d5 {[%emt 0:01:01]} 4. e3 {[%emt 0:01:30]} Bg7 {[%emt 0:00:14]} 5. h4 {[%emt 0:00:07]} h5 {[%emt 0:01:27]} 6. Nf3 {[%emt 0:00:00]} O-O {[%emt 0:04:22]} 7. Ne5 {[%emt 0:00:00]} c5 {[%emt 0:01:36]} 8. Qd2 {[%emt 0:00:00]} Qa5 {[%emt 0:06:12]} 9. f3 {[%emt 0:05:21]} Nc6 {[%emt 0:04:35]} 10. dxc5 {[%emt 0:24:29]} Qxc5 {[%emt 0:07:18]} 11. Nxc6 {[%emt 0:02:15]} Qxc6 {[%emt 0:01:08]} 12. O-O-O {[%emt 0:00:07]} Be6 {[%emt 0:05:03]} 13. Be5 {[%emt 0:09:04]} a6 {[%emt 0:07:22]} 14. Qd4 {[%emt 0:01:04]} Rac8 $11 {[%emt 0:04:25]} 15. g4 {[%emt 0:05:55]} Qc5 {[%emt 0:02:54]} 16. Qf4 {[%emt 0:02:08]} Qa5 {[%emt 0:18:12]} 17. Bd3 {[%emt 0:09:28]} Rc6 {[%emt 0:04:00]} 18. a3 {[%emt 0:04:41]} d4 {[%emt 0:11:09]} 19. Bxd4 {[%emt 0:02:02]} hxg4 {[%emt 0:00:18]} 20. fxg4 {[%emt 0:07:20]} Nxg4 {[%emt 0:00:09]} 21. Rdg1 {[%emt 0:09:58]} Bxd4 {[%emt 0:03:16]} 22. exd4 {[%emt 0:00:05]} Rxc3 {[%emt 0:00:06]} 23. bxc3 {[%emt 0:00:03]} Qxc3 {[%emt 0:00:21]} 24. h5 {[%emt 0:02:17]} Qxa3+ {[%emt 0:00:23]} 25. Kd2 {[%emt 0:01:36]} Qa5+ {[%emt 0:07:39]} 26. Ke2 {[%emt 0:00:36]} 1-0

[Event "80th ARM-ch 1st League 2019"]
[Site "Yerevan"]
[Date "2019.08.24"]
[Round "7.2"]
[White "Khojayan, Vardan"]
[Black "Harutyunian, Tigran K."]
[Result "0-1"]
[ECO "A05"]
[WhiteElo "2236"]
[BlackElo "2555"]
[Annotator "ChessBase"]
[PlyCount "84"]
[EventDate "2019.08.18"]
[EventType "tourn"]
[EventCountry "ARM"]
[SourceTitle "playchess.com"]
[Source "ChessBase"]
[SourceQuality "1"]
[TimeControl "40/5400+30:1800+30"]

1. Nf3 {[%emt 0:00:00]} Nf6 2. b3 {[%emt 0:01:22]} g6 {[%emt 0:07:48]} 3. Bb2 {[%emt 0:00:19]} Bg7 {[%emt 0:00:06]} 4. e3 {[%emt 0:04:22]} O-O {[%emt 0:00:27]} 5. Be2 {[%emt 0:00:07]} d6 {[%emt 0:01:47]} 6. d4 {[%emt 0:02:14]} Nc6 {[%emt 0:01:23]} 7. O-O {[%emt 0:13:29]} Bf5 {[%emt 0:00:39]} 8. Nh4 {[%emt 0:05:26]} Bd7 {[%emt 0:01:33]} 9. Nf3 {[%emt 0:00:24]} a5 {[%emt 0:07:41]} 10. a3 {[%emt 0:01:04]} e5 {[%emt 0:01:08]} 11. dxe5 {[%emt 0:01:55]} Ng4 {[%emt 0:01:32]} 12. c4 {[%emt 0:00:17]} Ngxe5 {[%emt 0:01:18]} 13. Nc3 {[%emt 0:01:33]} Nxf3+ {[%emt 0:04:15]} 14. Bxf3 {[%emt 0:00:21]} Ne5 {[%emt 0:00:14]} 15. Be2 {[%emt 0:01:21]} a4 {[%emt 0:01:37]} 16. f4 {[%emt 0:08:30]} Nc6 {[%emt 0:01:49]} 17. Nxa4 {[%emt 0:04:01]} Qe7 {[%emt 0:01:55]} 18. Qd2 {[%emt 0:07:30]} Rfe8 {[%emt 0:07:35]} 19. Bxg7 {[%emt 0:02:46]} Kxg7 {[%emt 0:02:36]} 20. Kf2 {[%emt 0:02:51]} Qh4+ {[%emt 0:07:58]} 21. Kg1 {[%emt 0:00:17]} Na5 {[%emt 0:00:19]} 22. Nb2 {[%emt 0:00:34]} Qf6 {[%emt 0:03:10]} 23. Bd1 {[%emt 0:02:25]} Re7 {[%emt 0:01:35]} 24. Rc1 {[%emt 0:03:00]} Nc6 {[%emt 0:02:12]} 25. Na4 {[%emt 0:00:42]} Nb8 {[%emt 0:20:44]} 26. Nc3 {[%emt 0:07:04]} Bc6 {[%emt 0:00:17]} 27. f5 {[%emt 0:12:21]} gxf5 {[%emt 0:02:26]} 28. Bc2 {[%emt 0:02:39]} Re5 {[%emt 0:02:37]} 29. Ne2 {[%emt 0:03:40]} Rxa3 {[%emt 0:01:13]} 30. Ng3 {[%emt 0:01:17]} Qg5 {[%emt 0:03:25]} 31. Rf4 {[%emt 0:01:30]} Ra2 {[%emt 0:02:07]} 32. Rcf1 {[%emt 0:00:06]} Kf8 {[%emt 0:00:43]} 33. Rxf5 {[%emt 0:03:16]} Rxf5 {[%emt 0:00:24]} 34. Rxf5 {[%emt 0:01:31]} Qg7 {[%emt 0:00:01]} 35. Qd3 {[%emt 0:02:46]} Nd7 {[%emt 0:01:06]} 36. Rf2 {[%emt 0:00:24]} Ne5 {[%emt 0:00:52]} 37. Qf5 {[%emt 0:00:38]} Bd7 {[%emt 0:01:16]} 38. Qe4 {[%emt 0:01:52]} Ng4 {[%emt 0:01:00]} 39. Rf1 {[%emt 0:01:21]} Qh6 {[%emt 0:02:22]} 40. h3 {[%emt 0:00:00]} Qxe3+ {[%emt 0:00:00]} 41. Kh1 {[%emt 0:02:20]} Nf2+ {[%emt 0:03:22]} 42. Rxf2 {[%emt 0:03:05]} Qxf2 {[%emt 0:00:26]} 0-1

[Event "80th ARM-ch 1st League 2019"]
[Site "Yerevan"]
[Date "2019.08.24"]
[Round "7.3"]
[White "Baghdasaryan, Vahe"]
[Black "Davtyan, Artur"]
[Result "1-0"]
[ECO "C54"]
[WhiteElo "2373"]
[BlackElo "2440"]
[Annotator "NA"]
[PlyCount "87"]
[EventDate "2019.08.18"]
[EventType "tourn"]
[EventCountry "ARM"]
[SourceTitle "playchess.com"]
[Source "ChessBase"]
[SourceQuality "1"]
[TimeControl "40/5400+30:1800+30"]

1. e4 {[%emt 0:00:21]} e5 {[%emt 0:00:00]} 2. Nf3 {[%emt 0:01:05]} Nc6 {[%emt 0:00:12]} 3. Bc4 {[%emt 0:00:09]} Bc5 {[%emt 0:00:21]} 4. c3 {[%emt 0:00:08]} Nf6 {[%emt 0:00:09]} 5. d3 {[%emt 0:00:16]} O-O {[%emt 0:00:33]} 6. Bg5 {[%emt 0:00:55]} h6 {[%emt 0:00:08]} 7. Bh4 {[%emt 0:00:07]} Be7 {[%emt 0:00:07]} 8. Nbd2 d6 {[%emt 0:02:20]} 9. Bb3 {[%emt 0:00:52]} Kh8 {[%emt 0:11:18]} 10. Nf1 {[%emt 0:07:31]} Nh5 {[%emt 0:14:07]} 11. Bxe7 {[%emt 0:02:32]} Qxe7 {[%emt 0:01:00]} 12. Ne3 {[%emt 0:00:46]} Nf4 {[%emt 0:04:38]} 13. g3 {[%emt 0:02:38]} Nh3 {[%emt 0:02:33]} 14. Kf1 {[%emt 0:03:19]} g6 {[%emt 0:06:18]} 15. Kg2 {[%emt 0:09:19]} Kg7 $11 {[%emt 0:24:56]} 16. Bd5 {[%emt 0:18:59]} h5 {[%emt 0:06:23]} 17. Ng1 {[%emt 0:12:58]} Nxg1 {[%emt 0:00:42]} 18. Rxg1 {[%emt 0:00:02]} h4 {[%emt 0:00:49]} 19. Qe2 {[%emt 0:18:12]} Bd7 {[%emt 0:00:55]} 20. g4 {[%emt 0:02:41]} Qg5 {[%emt 0:00:30]} 21. Kh1 {[%emt 0:00:30]} Kh7 {[%emt 0:00:30]} 22. f3 {[%emt 0:00:30]} Nd8 {[%emt 0:08:57]} 23. Qf2 {[%emt 0:06:24]} c6 {[%emt 0:03:42]} 24. Bb3 {[%emt 0:00:05]} Ne6 {[%emt 0:00:04]} 25. Bxe6 {[%emt 0:01:32]} fxe6 {[%emt 0:00:47]} 26. Ng2 {[%emt 0:01:05]} Rf6 {[%emt 0:05:40]} 27. Nxh4 {[%emt 0:01:08]} Kg7 {[%emt 0:00:07]} 28. Qg3 {[%emt 0:02:23]} Qf4 {[%emt 0:05:14]} 29. g5 {[%emt 0:01:25]} Rf7 {[%emt 0:00:01]} 30. Qe1 {[%emt 0:00:23]} Rh8 {[%emt 0:01:18]} 31. Rg4 {[%emt 0:00:07]} Rxh4 {[%emt 0:00:03]} 32. Qxh4 {[%emt 0:02:08]} Qxf3+ {[%emt 0:00:02]} 33. Rg2 {[%emt 0:00:08]} Kg8 {[%emt 0:00:30]} 34. Qg3 {[%emt 0:03:09]} c5 {[%emt 0:01:05]} 35. Kg1 {[%emt 0:01:15]} d5 {[%emt 0:01:00]} 36. Qxf3 {[%emt 0:00:47]} Rxf3 {[%emt 0:00:30]} 37. Rf2 {[%emt 0:00:30]} Rxf2 {[%emt 0:00:29]} 38. Kxf2 {[%emt 0:00:00]} Kf7 {[%emt 0:00:30]} 39. Ke3 {[%emt 0:00:14]} Bc6 {[%emt 0:00:29]} 40. Rf1+ Ke7 41. Rf6 {[%emt 0:01:30]} Be8 {[%emt 0:00:45]} 42. exd5 {[%emt 0:00:31]} exd5 {[%emt 0:00:05]} 43. c4 {[%emt 0:00:08]} dxc4 {[%emt 0:00:46]} 44. dxc4 {[%emt 0:05:01]} 1-0